fUST/lending_fUST_20240821
["ID","MTS","AMOUNT","RATE_DAILY","PERIOD"]
[335406610,1724197838090,-150.112233,0.000242,5]
[335406611,1724197838099,-953.45396956,0.00024213,2]
[335406612,1724197838109,-782.65797788,0.00024215,2]
[335406613,1724197838228,-882.96114551,0.00024215,2]
[335406614,1724197838238,-160.83387276,0.00024215,2]
[335406615,1724197838246,-154.57491897,0.00024215,2]
[335406616,1724197838256,-277.6716568,0.00024215,2]
[335406617,1724197838265,-10342.93698711,0.0002422,2]
[335406618,1724197838274,-277.6716568,0.0002422,2]
[335406619,1724197838284,-10342.93698711,0.0002422,2]
[335406620,1724197838294,-154.71377951,0.0002422,2]
[335406621,1724197838304,-435.0,0.0002422,2]
[335406622,1724197838313,-154.74467129,0.0002423,2]
[335406623,1724197838322,-3620.21503602,0.00024241,2]
[335406624,1724197838332,-167.45264166,0.00024241,2]
[335406625,1724197838341,-6615.32008925,0.00024241,2]
[335406626,1724197838351,-939.08236877,0.00024241,2]
[335406627,1724197838360,-156.11382055,0.00024241,2]
[335406628,1724197838369,-287.15761358,0.00024242,2]
[335406629,1724197838378,-10511.84618177,0.00024242,2]
[335406630,1724197838387,-1260.76755592,0.00024242,2]
[335406631,1724197838398,-604.36837461,0.00024255,6]
[335406632,1724197838410,-604.36837461,0.00024493,6]
[335406633,1724197838419,-151.20881187,0.00024593,2]
[335406634,1724197838428,-604.36837461,0.00024731,6]
[335406635,1724197838438,-3625.28915768,0.0002478,2]
[335406636,1724197838447,-604.36837461,0.00024968,6]
[335406637,1724197838456,-25267.5675749,0.0002499,3]
[335406638,1724197838466,-500.0,0.00024999,2]
[335406639,1724197838475,-255.59975,0.00024999,2]
[335406640,1724197838484,-500.0,0.00024999,2]
[335406641,1724197838494,-281.38602634,0.00024999,2]
[335406642,1724197838503,-500.0,0.00024999,2]
[335406643,1724197838513,-500.0,0.00024999,2]
[335406644,1724197838523,-500.0,0.00024999,2]
[335406645,1724197838532,-500.0,0.00024999,2]
[335406646,1724197838541,-500.0,0.00024999,2]
[335406647,1724197838551,-44644.10208008,0.00025,2]
[335406648,1724197838560,-154.59033561,0.00025,2]
[335406649,1724197838570,-308.19214429,0.00025,2]
[335406650,1724197838580,-277.92028119,0.00025,30]
[335406651,1724197838589,-258.18032213,0.00025,120]
[335406652,1724197838599,-503.64031218,0.00025,2]
[335406653,1724197838609,-154.60575532,0.00025,2]
[335406654,1724197838619,-151.0,0.00025159,2]
[335406655,1724197838632,-604.36837461,0.00025206,6]
[335406656,1724197838642,-503.64031218,0.0002525,2]
[335406657,1724197838651,-150.112233,0.000253,8]
[335406658,1724197838661,-303.35975762,0.00025444,8]
[335406659,1724197838672,-503.64031218,0.000255,2]
[335406660,1724197838682,-242.07419814,0.00025746,2]
[335406661,1724197838692,-503.64031218,0.0002575,2]
[335406662,1724197838703,-232.11968218,0.00026,120]
[335406663,1724197838713,-503.64031218,0.00026,2]
[335406664,1724197838722,-3135.64803338,0.00026019,30]
[335406665,1724197838732,-503.64031218,0.0002625,2]
[335406666,1724197838743,-150.112233,0.000264,6]
[335406667,1724197838752,-7458.94652043,0.0002649,2]
[335406668,1724197838762,-503.64031218,0.000265,2]
[335406669,1724197838771,-151.0,0.00026565,2]
[335406670,1724197838780,-503.64031218,0.0002675,2]
[335406671,1724197838790,-9657.75285226,0.000268,2]
[335406672,1724197838800,-503.64031218,0.00027,2]
[335406673,1724197838809,-165.0,0.00027,2]
[335406674,1724197838819,-199.0,0.00027,2]
[335406675,1724197838829,-25267.5675749,0.00027022,3]
[335406676,1724197838839,-214.769471,0.00027167,2]
[335406677,1724197838848,-503.64031218,0.0002725,2]
[335406678,1724197838858,-150.112233,0.000274,10]
[335406679,1724197838867,-166.74177,0.00027811,2]
[335406680,1724197838877,-174.492613,0.00027811,2]
[335406681,1724197838886,-171.493404,0.00027811,2]
[335406682,1724197838896,-168.584172,0.00027811,2]
[335406683,1724197838905,-166.332644,0.00027811,2]
[335406684,1724197838915,-151.0,0.0002797,2]
[335406685,1724197838926,-1648.56480432,0.0002799,2]
[335406686,1724197838935,-4900.0,0.00028,2]
[335406687,1724197838945,-339.14513774,0.00028,30]
[335406688,1724197838954,-171.493404,0.00028275,2]
[335406689,1724197838965,-166.332644,0.00028275,2]
[335406690,1724197838975,-150.112233,0.000285,8]
[335406691,1724197838985,-171.493404,0.00028739,2]
[335406692,1724197838995,-166.332644,0.00028739,2]
[335406693,1724197839006,-165.0,0.00028767,2]
[335406694,1724197839016,-150.0,0.00028897,2]
[335406695,1724197839026,-225.0,0.00029,2]
[335406696,1724197839035,-151.0,0.00029016,7]
[335406697,1724197839046,-151.0,0.00029016,7]
[335406698,1724197839055,-151.0,0.00029016,7]
[335406699,1724197839064,-151.0,0.00029016,7]
[335406700,1724197839074,-151.0,0.00029016,7]
[335406701,1724197839083,-222.486668,0.00029016,7]
[335406702,1724197839093,-222.486668,0.00029016,7]
[335406703,1724197839103,-1774.529134,0.00029016,7]
[335406704,1724197839113,-1774.529134,0.00029016,7]
[335406705,1724197839122,-151.0,0.00029016,7]
[335406706,1724197839131,-151.0,0.00029016,7]
[335406707,1724197839142,-151.0,0.00029016,7]
[335406708,1724197839152,-151.0,0.00029016,7]
[335406709,1724197839162,-50535.1351498,0.0002909,3]
[335406710,1724197839173,-322.39,0.000291,7]
[335406711,1724197839183,-168.584172,0.00029202,2]
[335406712,1724197839193,-171.493404,0.00029202,2]
[335406713,1724197839202,-166.332644,0.00029202,2]
[335406714,1724197839213,-151.0,0.00029376,2]
[335406715,1724197839222,-150.112233,0.000296,10]
[335406716,1724197839232,-255.27528526,0.0003,5]
[335406717,1724197839241,-300.0,0.0003,2]
[335406718,1724197839251,-274.0,0.0003,2]
[335406719,1724197839261,-151.0,0.0003,120]
[335406720,1724197839270,-630.0,0.0003,120]
[335406721,1724197839280,-150.0,0.00030006,2]
[335406722,1724197839289,-150.0,0.00030015,2]
[335406723,1724197839299,-150.112233,0.000307,7]
[335406724,1724197839308,-151.0,0.00030782,2]
[335406725,1724197839317,-300.0,0.00031,4]
[335406726,1724197839326,-165.578175,0.00031059,2]
[335406727,1724197839336,-150.112233,0.000317,9]
[335406728,1724197839346,-300.0,0.00032,5]
[335406729,1724197839357,-153.0,0.00032016,2]
[335406730,1724197839366,-153.0,0.00032019,2]
[335406731,1724197839376,-153.0,0.00032061,2]
[335406732,1724197839385,-153.0,0.00032061,2]
[335406733,1724197839395,-153.0,0.00032061,2]
[335406734,1724197839404,-153.0,0.00032061,2]
[335406735,1724197839413,-153.0,0.00032061,2]
[335406736,1724197839423,-153.0,0.00032061,2]
[335406737,1724197839433,-153.0,0.00032061,2]
[335406738,1724197839442,-153.0,0.00032061,2]
[335406739,1724197839451,-153.0,0.00032061,2]
[335406740,1724197839460,-153.0,0.00032065,2]
[335406741,1724197839470,-153.0,0.00032065,2]
[335406742,1724197839479,-153.0,0.00032065,2]
[335406743,1724197839490,-153.0,0.00032065,2]
[335406744,1724197839499,-153.0,0.00032065,2]
[335406746,1724197839508,-153.0,0.00032065,2]
[335406747,1724197839519,-151.0,0.00032188,3]
[335406748,1724197839529,-150.0,0.00032281,2]
[335406749,1724197839538,-521.0,0.00032281,2]
[335406750,1724197839547,-7726.0,0.00032387,2]
[335406751,1724197839557,-165.964,0.00032387,2]
[335406752,1724197839566,-239.491,0.00032387,2]
[335406753,1724197839576,-245.501,0.00032387,2]
[335406754,1724197839586,-207.6000865,0.00032531,2]
[335406755,1724197839595,-207.6000865,0.00032531,2]
[335406756,1724197839605,-189.2063279,0.00032531,2]
[335406757,1724197839615,-150.112233,0.000328,10]
[335406758,1724197839626,-1000.0,0.00033,2]
[335406759,1724197839638,-300.0,0.00033,7]
[335406760,1724197839647,-274.0,0.00033,2]
[335406761,1724197839656,-155.12080505,0.00033234,3]
[335406762,1724197839666,-151.0,0.00033593,4]
[335406763,1724197839679,-601.13665352,0.000336,2]
[335406764,1724197839688,-214.769471,0.00033626,2]
[335406765,1724197839698,-150.112233,0.000339,5]
[335406766,1724197839708,-1000.0,0.00034,2]
[335406767,1724197839718,-300.0,0.00034,9]
[335406768,1724197839728,-256.953892,0.00034247,2]
[335406769,1724197839738,-25267.5675749,0.0003451,4]
[335406770,1724197839748,-292.818541,0.0003452,7]
[335406771,1724197839757,-151.0,0.0003452,7]
[335406772,1724197839767,-155.25,0.0003452,7]
[335406773,1724197839776,-151.0,0.0003452,7]
[335406774,1724197839785,-222.486668,0.0003452,7]
[335406775,1724197839795,-1355.88,0.0003452,21]
[335406776,1724197839804,-1355.88,0.0003452,21]
[335406777,1724197839813,-1355.88,0.0003452,21]
[335406778,1724197839823,-222.486668,0.0003452,7]
[335406779,1724197839832,-1355.88,0.0003452,21]
[335406780,1724197839842,-1355.88,0.0003452,21]
[335406781,1724197839851,-1355.88,0.0003452,21]
[335406782,1724197839861,-1355.88,0.0003452,21]
[335406783,1724197839872,-1355.88,0.0003452,21]
[335406784,1724197839881,-1355.88,0.0003452,21]
[335406785,1724197839890,-1355.88,0.0003452,21]
[335406786,1724197839899,-1355.88,0.0003452,21]
[335406787,1724197839909,-1355.88,0.0003452,21]
[335406788,1724197839920,-1355.88,0.0003452,21]
[335406789,1724197839929,-1355.88,0.0003452,21]
[335406790,1724197839939,-1355.88,0.0003452,21]
[335406791,1724197839947,-1355.88,0.0003452,21]
[335406792,1724197839958,-1355.88,0.0003452,21]
[335406793,1724197839968,-1355.88,0.0003452,21]
[335406794,1724197839978,-1355.88,0.0003452,21]
[335406795,1724197839987,-1355.88,0.0003452,21]
[335406796,1724197839996,-1355.88,0.0003452,21]
[335406797,1724197840007,-1355.88,0.0003452,21]
[335406798,1724197840017,-1355.88,0.0003452,21]
[335406799,1724197840027,-1356.03236434,0.0003452,21]
[335406801,1724197840036,-1774.529134,0.0003452,7]
[335406803,1724197840046,-1774.529134,0.0003452,7]
[335406806,1724197840056,-151.0,0.0003452,7]
[335406808,1724197840066,-151.0,0.0003452,7]
[335406810,1724197840075,-151.0,0.0003452,7]
[335406812,1724197840085,-46730.17900001,0.000346,9]
[335406814,1724197840094,-60637.37,0.000346,14]
[335406816,1724197840103,-917.89,0.000346,14]
[335406818,1724197840113,-864.46727604,0.000346,2]
[335406820,1724197840123,-4690.6,0.000346,14]
[335406831,1724197840215,-150.0,0.00034626,2]
[335406833,1724197840226,-864.46727602,0.00034633,2]
[335406835,1724197840235,-864.46727602,0.00034667,2]
[335406837,1724197840245,-25267.5675749,0.0003469,4]
[335406839,1724197840255,-151.0,0.000347,7]
[335406841,1724197840264,-151.660139,0.000347,7]
[335406843,1724197840273,-151.0,0.000347,7]
[335406845,1724197840282,-151.0,0.000347,7]
[335406847,1724197840292,-151.0,0.000347,7]
[335406849,1724197840301,-151.0,0.000347,7]
[335406851,1724197840310,-231.818606,0.000347,7]
[335406853,1724197840319,-231.818606,0.000347,7]
[335406855,1724197840327,-864.46727602,0.000347,2]
[335406857,1724197840337,-153.0,0.0003472,2]
[335406859,1724197840346,-153.0,0.0003472,2]
[335406861,1724197840356,-153.0,0.0003472,2]
[335406863,1724197840366,-153.0,0.0003472,2]
[335406865,1724197840375,-153.0,0.0003472,2]
[335406867,1724197840385,-153.0,0.0003472,2]
[335406869,1724197840394,-153.0,0.0003472,2]
[335406870,1724197840403,-153.0,0.0003472,2]
[335406871,1724197840412,-153.0,0.0003472,2]
[335406872,1724197840422,-153.0,0.0003472,2]
[335406873,1724197840431,-153.0,0.0003472,2]
[335406874,1724197840442,-153.0,0.0003472,2]
[335406875,1724197840453,-153.0,0.0003472,2]
[335406876,1724197840462,-153.0,0.0003472,2]
[335406877,1724197840471,-153.0,0.0003472,2]
[335406878,1724197840480,-322.39,0.000348,30]
[335406879,1724197840490,-1000.0,0.000348,3]
[335406880,1724197840499,-6524.32611269,0.000348,12]
[335406881,1724197840509,-151.0,0.000348,7]
[335406882,1724197840521,-151.0,0.000348,7]
[335406883,1724197840533,-151.0,0.000348,7]
[335406884,1724197840543,-151.0,0.000348,7]
[335406885,1724197840552,-151.0,0.000348,7]
[335406886,1724197840563,-151.0,0.000348,7]
[335406887,1724197840572,-175.38275,0.000348,7]
[335406888,1724197840587,-175.38275,0.000348,7]
[335406889,1724197840598,-151.0,0.000348,7]
[335406890,1724197840609,-151.0,0.000348,7]
[335406891,1724197840621,-151.0,0.000348,7]
[335406892,1724197840634,-151.0,0.000348,7]
[335406893,1724197840645,-151.0,0.000348,7]
[335406894,1724197840655,-29308.94410061,0.000349,9]
[335406895,1724197840665,-500.0,0.000349,21]
[335406896,1724197840677,-300.735059,0.000349,14]
[335406897,1724197840686,-150.0,0.000349,2]
[335406898,1724197840697,-500.0,0.000349,80]
[335406899,1724197840709,-23003.724524,0.000349,7]
[335406900,1724197840720,-151.0,0.000349,7]
[335406901,1724197840728,-2288.16484941,0.000349,2]
[335406902,1724197840739,-207.722401,0.000349,7]
[335406903,1724197840750,-300.0,0.000349,17]
[335406904,1724197840759,-2853.63,0.0003493,2]
[335406905,1724197840769,-2853.63,0.0003493,2]
[335406906,1724197840778,-2853.63,0.0003493,2]
[335406907,1724197840788,-2853.63,0.0003493,2]
[335406908,1724197840799,-2853.63,0.0003493,2]
[335406909,1724197840811,-2853.63,0.0003493,2]
[335406910,1724197840821,-2853.63,0.0003493,2]
[335406911,1724197840831,-2853.63,0.0003493,2]
[335406912,1724197840842,-2853.63,0.0003493,2]
[335406913,1724197840853,-2853.63,0.0003493,2]
[335406914,1724197840862,-835.22934006,0.0003493,2]
[335406915,1724197840871,-285.35740115,0.00034931,3]
[335406916,1724197840881,-534.33980533,0.00034931,21]
[335406917,1724197840891,-500.0,0.00034931,21]
[335406918,1724197840902,-501.75767869,0.00034931,21]
[335406919,1724197840914,-302.83401711,0.00034931,21]
[335406920,1724197840925,-500.0,0.00034931,21]
[335406921,1724197840935,-502.15700071,0.00034931,21]
[335406922,1724197840946,-500.0,0.00034931,21]
[335406923,1724197840956,-500.0,0.00034931,21]
[335406924,1724197840965,-500.0,0.00034931,21]
[335406925,1724197840974,-338.4143429,0.00034931,21]
[335406926,1724197840984,-500.0,0.00034931,21]
[335406927,1724197840993,-500.0,0.00034931,21]
[335406928,1724197841002,-223.67744127,0.00034931,21]
[335406929,1724197841012,-501.98017459,0.00034931,2]
[335406930,1724197841021,-500.0,0.00034931,21]
[335406931,1724197841030,-500.0,0.00034931,21]
[335406932,1724197841039,-500.0,0.00034931,21]
[335406933,1724197841048,-500.0,0.00034931,21]
[335406934,1724197841057,-500.0,0.00034931,21]
[335406935,1724197841066,-500.0,0.00034931,21]
[335406936,1724197841076,-500.0,0.00034931,21]
[335406937,1724197841086,-500.0,0.00034931,21]
[335406938,1724197841099,-500.0,0.00034931,21]
[335406939,1724197841110,-500.0,0.00034931,21]
[335406940,1724197841120,-500.0,0.00034931,21]
[335406941,1724197841139,-500.0,0.00034931,21]
[335406942,1724197841154,-533.58840961,0.00034931,21]
[335406943,1724197841165,-500.0,0.00034931,21]
[335406944,1724197841180,-500.0,0.00034931,21]
[335406945,1724197841193,-500.0,0.00034931,21]
[335406946,1724197841205,-500.0,0.00034931,21]
[335406947,1724197841220,-500.0,0.00034931,21]
[335406948,1724197841234,-500.0,0.00034931,21]
[335406949,1724197841247,-500.0,0.00034931,21]
[335406950,1724197841259,-501.29634088,0.00034931,21]
[335406951,1724197841272,-500.0,0.00034931,21]
[335406952,1724197841284,-500.0,0.00034931,21]
[335406953,1724197841299,-368.4,0.00034931,21]
[335406954,1724197841311,-500.0,0.00034931,21]
[335406955,1724197841326,-500.0,0.00034931,21]
[335406956,1724197841339,-500.0,0.00034931,21]
[335406957,1724197841354,-500.0,0.00034931,21]
[335406958,1724197841367,-500.0,0.00034931,21]
[335406959,1724197841382,-510.72223826,0.00034931,21]
[335406960,1724197841394,-500.0,0.00034931,21]
[335406961,1724197841407,-500.0,0.00034931,21]
[335406962,1724197841421,-500.0,0.00034931,21]
[335406963,1724197841433,-500.0,0.00034931,21]
[335406964,1724197841446,-500.0,0.00034931,21]
[335406965,1724197841459,-500.0,0.00034931,21]
[335406966,1724197841471,-500.0,0.00034931,21]
[335406967,1724197841484,-500.0,0.00034931,21]
[335406968,1724197841497,-500.0,0.00034931,21]
[335406969,1724197841510,-500.0,0.00034931,21]
[335406970,1724197841521,-500.0,0.00034931,21]
[335406971,1724197841531,-500.0,0.00034931,21]
[335406972,1724197841543,-213.58,0.00034931,21]
[335406973,1724197841555,-500.0,0.00034931,21]
[335406974,1724197841569,-500.0,0.00034931,21]
[335406975,1724197841579,-500.0,0.00034931,21]
[335406976,1724197841590,-500.0,0.00034931,21]
[335406977,1724197841601,-500.0,0.00034931,21]
[335406978,1724197841613,-500.0,0.00034931,21]
[335406979,1724197841630,-500.0,0.00034931,21]
[335406980,1724197841642,-500.0,0.00034931,21]
[335406981,1724197841655,-500.0,0.00034931,21]
[335406982,1724197841667,-500.0,0.00034931,21]
[335406983,1724197841680,-520.57193599,0.00034931,21]
[335406984,1724197841691,-501.89228464,0.00034931,21]
[335406985,1724197841703,-500.0,0.00034931,21]
[335406986,1724197841714,-500.0,0.00034931,21]
[335406987,1724197841725,-500.0,0.00034931,21]
[335406988,1724197841738,-500.0,0.00034931,21]
[335406989,1724197841750,-500.0,0.00034931,21]
[335406990,1724197841761,-500.0,0.00034931,21]
[335406991,1724197841773,-500.0,0.00034931,21]
[335406992,1724197841787,-500.0,0.00034931,21]
[335406993,1724197841801,-500.0,0.00034931,21]
[335406994,1724197841813,-500.0,0.00034931,21]
[335406995,1724197841826,-500.0,0.00034931,21]
[335406996,1724197841837,-500.0,0.00034931,21]
[335406997,1724197841851,-629.63849679,0.00034931,21]
[335406998,1724197841862,-500.0,0.00034931,21]
[335406999,1724197841873,-500.0,0.00034931,21]
[335407000,1724197841885,-500.0,0.00034931,21]
[335407001,1724197841898,-500.0,0.00034931,21]
[335407002,1724197841910,-502.59079864,0.00034931,21]
[335407003,1724197841923,-500.0,0.00034931,21]
[335407004,1724197841934,-500.0,0.00034931,21]
[335407005,1724197841947,-584.96274854,0.00034931,21]
[335407006,1724197841960,-500.0,0.00034931,21]
[335407007,1724197841971,-500.0,0.00034931,21]
[335407008,1724197841983,-500.0,0.00034931,21]
[335407009,1724197841995,-500.0,0.00034931,21]
[335407010,1724197842008,-500.0,0.00034931,21]
[335407011,1724197842019,-569.70686458,0.00034931,21]
[335407012,1724197842031,-500.0,0.00034931,21]
[335407013,1724197842043,-500.0,0.00034931,21]
[335407014,1724197842055,-500.0,0.00034931,21]
[335407015,1724197842067,-500.0,0.00034931,21]
[335407016,1724197842079,-500.0,0.00034931,21]
[335407017,1724197842091,-500.0,0.00034931,21]
[335407018,1724197842103,-500.0,0.00034931,21]
[335407019,1724197842114,-500.0,0.00034931,21]
[335407020,1724197842126,-500.0,0.00034931,21]
[335407021,1724197842139,-500.0,0.00034931,21]
[335407022,1724197842151,-508.3067394,0.00034931,21]
[335407023,1724197842161,-500.0,0.00034931,21]
[335407024,1724197842173,-500.0,0.00034931,21]
[335407025,1724197842184,-500.0,0.00034931,21]
[335407026,1724197842196,-500.0,0.00034931,21]
[335407027,1724197842208,-500.0,0.00034931,21]
[335407028,1724197842220,-500.0,0.00034931,21]
[335407029,1724197842232,-500.0,0.00034931,21]
[335407030,1724197842244,-500.0,0.00034931,21]
[335407031,1724197842370,-500.0,0.00034931,21]
[335407032,1724197842383,-500.0,0.00034931,21]
[335407033,1724197842393,-500.0,0.00034931,21]
[335407034,1724197842402,-502.21132263,0.00034931,21]
[335407035,1724197842411,-525.68585489,0.00034931,21]
[335407036,1724197842421,-500.0,0.00034931,21]
[335407037,1724197842431,-500.0,0.00034931,21]
[335407038,1724197842440,-500.0,0.00034931,21]
[335407039,1724197842449,-500.0,0.00034931,21]
[335407040,1724197842459,-500.0,0.00034931,21]
[335407041,1724197842468,-500.0,0.00034931,21]
[335407042,1724197842478,-500.0,0.00034931,21]
[335407043,1724197842487,-574.32,0.00034931,21]
[335407044,1724197842496,-292.3120858,0.00034931,21]
[335407045,1724197842506,-574.32,0.00034931,21]
[335407046,1724197842516,-574.32,0.00034931,21]
[335407047,1724197842525,-574.32,0.00034931,21]
[335407048,1724197842535,-574.32,0.00034931,21]
[335407049,1724197842544,-574.32,0.00034931,21]
[335407050,1724197842554,-574.32,0.00034931,21]
[335407051,1724197842563,-574.32,0.00034931,21]
[335407052,1724197842573,-574.32,0.00034931,21]
[335407053,1724197842582,-574.32,0.00034931,21]
[335407054,1724197842592,-574.32,0.00034931,21]
[335407055,1724197842602,-574.32,0.00034931,21]
[335407056,1724197842612,-574.32,0.00034931,21]
[335407057,1724197842622,-574.32,0.00034931,21]
[335407058,1724197842635,-574.32,0.00034931,21]
[335407059,1724197842644,-509.60882877,0.00034931,21]
[335407060,1724197842654,-574.32,0.00034931,21]
[335407061,1724197842664,-574.32,0.00034931,21]
[335407062,1724197842675,-574.32,0.00034931,21]
[335407063,1724197842684,-574.32,0.00034931,21]
[335407065,1724197842695,-500.0,0.00034931,21]
[335407067,1724197842707,-574.32,0.00034931,21]
[335407068,1724197842716,-158.59978058,0.00034931,21]
[335407069,1724197842726,-574.32,0.00034931,21]
[335407070,1724197842735,-574.32,0.00034931,21]
[335407071,1724197842745,-574.32,0.00034931,21]
[335407072,1724197842754,-574.34,0.00034931,21]
[335407073,1724197842763,-500.0,0.00034931,21]
[335407074,1724197842773,-500.0,0.00034931,21]
[335407075,1724197842784,-501.4158508,0.00034931,21]
[335407076,1724197842793,-500.0,0.00034931,21]
[335407077,1724197842803,-500.0,0.00034931,21]
[335407078,1724197842813,-500.0,0.00034931,21]
[335407079,1724197842822,-500.0,0.00034931,21]
[335407080,1724197842832,-325.63474273,0.00034931,21]
[335407081,1724197842841,-500.0,0.00034931,21]
[335407082,1724197842852,-500.0,0.00034931,21]
[335407083,1724197842862,-500.0,0.00034931,21]
[335407084,1724197842872,-500.0,0.00034931,21]
[335407085,1724197842882,-500.0,0.00034931,21]
[335407086,1724197842892,-500.0,0.00034931,21]
[335407087,1724197842902,-500.0,0.00034931,21]
[335407088,1724197842911,-500.0,0.00034931,21]
[335407089,1724197842921,-500.0,0.00034931,21]
[335407090,1724197842931,-500.0,0.00034931,21]
[335407091,1724197842941,-503.12940545,0.00034931,21]
[335407092,1724197842951,-500.0,0.00034931,21]
[335407093,1724197842960,-500.0,0.00034931,21]
[335407094,1724197842971,-500.0,0.00034931,21]
[335407095,1724197842980,-500.0,0.00034931,21]
[335407096,1724197842990,-500.0,0.00034931,21]
[335407097,1724197842999,-500.0,0.00034931,21]
[335407098,1724197843008,-500.0,0.00034931,21]
[335407099,1724197843018,-500.0,0.00034931,21]
[335407100,1724197843028,-500.0,0.00034931,21]
[335407101,1724197843038,-500.0,0.00034931,21]
[335407102,1724197843049,-500.0,0.00034931,21]
[335407103,1724197843059,-320.4,0.00034931,21]
[335407104,1724197843068,-500.0,0.00034931,21]
[335407105,1724197843078,-500.0,0.00034931,21]
[335407106,1724197843088,-500.0,0.00034931,21]
[335407107,1724197843097,-500.0,0.00034931,21]
[335407108,1724197843108,-500.0,0.00034931,21]
[335407109,1724197843118,-500.0,0.00034931,21]
[335407110,1724197843128,-500.0,0.00034931,21]
[335407111,1724197843138,-500.0,0.00034931,21]
[335407112,1724197843148,-500.0,0.00034931,21]
[335407113,1724197843157,-244.63,0.00034931,21]
[335407114,1724197843166,-500.0,0.00034931,21]
[335407115,1724197843177,-500.0,0.00034931,21]
[335407116,1724197843186,-500.0,0.00034931,21]
[335407117,1724197843195,-500.0,0.00034931,21]
[335407118,1724197843206,-500.0,0.00034931,21]
[335407119,1724197843215,-500.0,0.00034931,21]
[335407120,1724197843226,-500.0,0.00034931,21]
[335407121,1724197843236,-500.0,0.00034931,21]
[335407122,1724197843246,-500.0,0.00034931,21]
[335407123,1724197843256,-500.0,0.00034931,21]
[335407124,1724197843266,-510.84275945,0.00034931,21]
[335407125,1724197843277,-500.0,0.00034931,21]
[335407126,1724197843288,-500.0,0.00034931,21]
[335407127,1724197843298,-500.0,0.00034931,21]
[335407128,1724197843307,-500.0,0.00034931,21]
[335407129,1724197843317,-500.0,0.00034931,21]
[335407130,1724197843328,-500.0,0.00034931,21]
[335407131,1724197843339,-500.0,0.00034931,21]
[335407132,1724197843349,-500.0,0.00034931,21]
[335407133,1724197843359,-500.0,0.00034931,21]
[335407134,1724197843369,-500.0,0.00034931,21]
[335407135,1724197843380,-500.0,0.00034931,21]
[335407136,1724197843391,-418.3118684,0.00034931,21]
[335407137,1724197843401,-500.0,0.00034931,21]
[335407138,1724197843411,-244.63,0.00034931,21]
[335407139,1724197843422,-265.7,0.00034931,21]
[335407140,1724197843433,-500.0,0.00034931,21]
[335407141,1724197843444,-500.0,0.00034931,21]
[335407142,1724197843454,-500.0,0.00034931,21]
[335407143,1724197843464,-500.0,0.00034931,21]
[335407144,1724197843473,-500.0,0.00034931,21]
[335407145,1724197843483,-500.0,0.00034931,21]
[335407146,1724197843492,-500.0,0.00034931,21]
[335407147,1724197843502,-500.0,0.00034931,21]
[335407148,1724197843511,-500.0,0.00034931,21]
[335407149,1724197843521,-500.0,0.00034931,21]
[335407150,1724197843530,-507.11433797,0.00034931,21]
[335407151,1724197843540,-500.0,0.00034931,21]
[335407152,1724197843549,-500.0,0.00034931,21]